fUST/lending_fUST_20260117
["ID","MTS","AMOUNT","RATE_DAILY","PERIOD"]
[402360200,1768665039942,-500.0,0.00016438,3]
[402360202,1768665039951,-500.0,0.00016438,3]
[402360204,1768665039962,-500.0,0.00016438,3]
[402360206,1768665039973,-500.0,0.00016438,3]
[402360208,1768665039983,-560.2982487,0.00016438,3]
[402360210,1768665039993,-500.0,0.00016438,3]
[402360212,1768665040003,-500.0,0.00016438,3]
[402360214,1768665040012,-1000.0,0.00016438,2]
[402360216,1768665040022,-500.0,0.00016438,3]
[402360218,1768665040032,-500.0,0.00016438,3]
[402360220,1768665040042,-500.0,0.00016438,3]
[402360222,1768665040053,-649.38,0.00016438,3]
[402360224,1768665040063,-500.0,0.00016438,3]
[402360226,1768665040072,-861.11,0.00016438,3]
[402360228,1768665040082,-500.0,0.00016438,3]
[402360230,1768665040091,-257.29403538,0.00016438,3]
[402360232,1768665040100,-500.0,0.00016438,3]
[402360234,1768665040110,-500.0,0.00016438,3]
[402360236,1768665040119,-500.0,0.00016438,3]
[402360238,1768665040129,-500.0,0.00016438,3]
[402360240,1768665040139,-544.6,0.00016438,3]
[402360242,1768665040148,-500.0,0.00016438,2]
[402360244,1768665040158,-413.82786388,0.00016438,2]
[402360246,1768665040167,-837.68,0.00016438,3]
[402360248,1768665040176,-500.0,0.00016438,3]
[402360250,1768665040186,-500.0,0.00016438,3]
[402360252,1768665040195,-551.67,0.00016438,3]
[402360254,1768665040205,-500.0,0.00016438,3]
[402360256,1768665040215,-500.0,0.00016438,3]
[402360258,1768665040225,-500.0,0.00016438,3]
[402360260,1768665040234,-500.0,0.00016438,3]
[402360262,1768665040245,-500.0,0.00016438,3]
[402360264,1768665040255,-500.0,0.00016438,3]
[402360267,1768665040265,-500.0,0.00016438,3]
[402360268,1768665040275,-500.0,0.00016438,3]
[402360271,1768665040285,-500.0,0.00016438,3]
[402360273,1768665040295,-544.42342876,0.00016438,3]
[402360275,1768665040305,-1028.28,0.00016438,3]
[402360276,1768665040315,-674.48,0.00016438,3]
[402360279,1768665040332,-500.0,0.00016438,3]
[402360282,1768665040345,-500.0,0.00016438,3]
[402360284,1768665040354,-712.93,0.00016438,3]
[402360286,1768665040364,-500.0,0.00016438,3]
[402360288,1768665040375,-500.0,0.00016438,3]
[402360290,1768665040385,-500.0,0.00016438,3]
[402360292,1768665040395,-500.0,0.00016438,3]
[402360294,1768665040404,-500.0,0.00016438,3]
[402360296,1768665040414,-500.0,0.00016438,2]
[402360298,1768665040424,-500.0,0.00016438,3]
[402360300,1768665040434,-923.59,0.00016438,3]
[402360302,1768665040443,-500.0,0.00016438,3]
[402360304,1768665040453,-500.0,0.00016438,3]
[402360306,1768665040463,-500.0,0.00016438,3]
[402360308,1768665040472,-500.0,0.00016438,3]
[402360310,1768665040482,-500.0,0.00016438,3]
[402360312,1768665040492,-500.0,0.00016438,3]
[402360314,1768665040502,-500.0,0.00016438,3]
[402360316,1768665040511,-500.0,0.00016438,3]
[402360318,1768665040521,-500.0,0.00016438,3]
[402360320,1768665040530,-500.0,0.00016438,3]
[402360322,1768665040540,-500.0,0.00016438,3]
[402360324,1768665040550,-500.0,0.00016438,3]
[402360326,1768665040560,-500.0,0.00016438,3]
[402360328,1768665040570,-969.59,0.00016438,3]
[402360330,1768665040580,-605.38,0.00016438,3]
[402360332,1768665040590,-658.11,0.00016438,3]
[402360334,1768665040600,-683.64,0.00016438,3]
[402360336,1768665040610,-500.0,0.00016438,3]
[402360338,1768665040620,-500.0,0.00016438,3]
[402360340,1768665040630,-500.0,0.00016438,3]
[402360342,1768665040640,-500.0,0.00016438,3]
[402360344,1768665040650,-500.0,0.00016438,3]
[402360346,1768665040660,-500.0,0.00016438,3]
[402360348,1768665040670,-500.0,0.00016438,3]
[402360350,1768665040680,-500.0,0.00016438,3]
[402360352,1768665040690,-575.88539769,0.00016438,3]
[402360354,1768665040700,-500.0,0.00016438,3]
[402360356,1768665040710,-500.0,0.00016438,3]
[402360358,1768665040719,-500.0,0.00016438,3]
[402360360,1768665040729,-500.0,0.00016438,3]
[402360362,1768665040739,-500.0,0.00016438,3]
[402360364,1768665040750,-483.43506742,0.00016438,3]
[402360366,1768665040760,-1398.34,0.00016438,3]
[402360368,1768665040770,-500.0,0.00016438,3]
[402360370,1768665040779,-500.0,0.00016438,3]
[402360372,1768665040789,-500.0,0.00016438,3]
[402360374,1768665040799,-716.18,0.00016438,3]
[402360376,1768665040808,-616.4,0.00016438,3]
[402360378,1768665040818,-500.0,0.00016438,3]
[402360380,1768665040827,-500.0,0.00016438,3]
[402360382,1768665040837,-1463.39,0.00016438,3]
[402360384,1768665040847,-500.0,0.00016438,3]
[402360386,1768665040857,-1233.39,0.00016438,3]
[402360388,1768665040868,-971.01,0.00016438,3]
[402360390,1768665040877,-500.0,0.00016438,3]
[402360392,1768665040887,-500.0,0.00016438,3]
[402360395,1768665040897,-500.0,0.00016438,3]
[402360397,1768665040906,-789.05,0.00016438,3]
[402360398,1768665040915,-500.0,0.00016438,3]
[402360401,1768665040925,-500.0,0.00016438,3]
[402360403,1768665040935,-500.0,0.00016438,3]
[402360405,1768665040945,-500.0,0.00016438,3]
[402360407,1768665040954,-500.0,0.00016438,3]
[402360408,1768665040963,-500.0,0.00016438,3]
[402360411,1768665040976,-500.0,0.00016438,3]
[402360413,1768665040987,-580.49,0.00016438,3]
[402360415,1768665041000,-500.0,0.00016438,3]
[402360417,1768665041012,-674.43,0.00016438,3]
[402360419,1768665041022,-500.0,0.00016438,3]
[402360421,1768665041032,-500.0,0.00016438,3]
[402360423,1768665041042,-500.0,0.00016438,3]
[402360426,1768665041057,-1550.06,0.00016438,3]
[402360428,1768665041067,-500.0,0.00016438,3]
[402360430,1768665041077,-1519.5,0.00016438,3]
[402360432,1768665041087,-578.0,0.00016438,3]
[402360434,1768665041097,-500.0,0.00016438,3]
[402360436,1768665041107,-500.0,0.00016438,3]
[402360438,1768665041117,-500.0,0.00016438,3]
[402360440,1768665041127,-500.0,0.00016438,3]
[402360442,1768665041137,-500.0,0.00016438,3]
[402360444,1768665041147,-1593.51,0.00016438,3]
[402360446,1768665041157,-771.45,0.00016438,3]
[402360448,1768665041167,-500.0,0.00016438,3]
[402360451,1768665041177,-500.46,0.00016438,3]
[402360453,1768665041187,-1464.87,0.00016438,3]
[402360455,1768665041197,-766.62,0.00016438,3]
[402360457,1768665041207,-500.0,0.00016438,3]
[402360459,1768665041217,-500.0,0.00016438,3]
[402360461,1768665041226,-828.37,0.00016438,3]
[402360463,1768665041236,-500.0,0.00016438,3]
[402360465,1768665041246,-1407.26,0.00016438,3]
[402360467,1768665041255,-581.95,0.00016438,3]
[402360469,1768665041265,-500.0,0.00016438,3]
[402360471,1768665041275,-358.09548366,0.00016438,3]
[402360473,1768665041285,-500.0,0.00016438,3]
[402360475,1768665041295,-500.0,0.00016438,3]
[402360477,1768665041305,-500.0,0.00016438,3]
[402360479,1768665041315,-784.74,0.00016438,3]
[402360481,1768665041325,-1189.96,0.00016438,3]
[402360483,1768665041335,-500.0,0.00016438,3]
[402360485,1768665041345,-648.5,0.00016438,3]
[402360487,1768665041355,-854.05,0.00016438,3]
[402360489,1768665041367,-500.0,0.00016438,3]
[402360492,1768665041377,-500.0,0.00016438,3]
[402360494,1768665041387,-674.01,0.00016438,3]
[402360496,1768665041397,-500.0,0.00016438,3]
[402360498,1768665041407,-801.02,0.00016438,3]
[402360500,1768665041416,-1135.8,0.00016438,3]
[402360502,1768665041426,-519.74,0.00016438,3]
[402360504,1768665041436,-500.0,0.00016438,3]
[402360506,1768665041445,-500.0,0.00016438,3]
[402360508,1768665041455,-500.0,0.00016438,3]
[402360510,1768665041465,-500.0,0.00016438,3]
[402360512,1768665041475,-500.0,0.00016438,3]
[402360514,1768665041485,-1260.5,0.00016438,3]
[402360516,1768665041495,-500.0,0.00016438,3]
[402360518,1768665041506,-548.89807406,0.00016438,3]
[402360520,1768665041516,-540.45385614,0.00016438,3]
[402360522,1768665041526,-500.0,0.00016438,3]
[402360524,1768665041537,-1943.18,0.00016438,3]
[402360526,1768665041547,-500.0,0.00016438,3]
[402360528,1768665041557,-500.0,0.00016438,3]
[402360530,1768665041567,-710.33,0.00016438,3]
[402360532,1768665041578,-1133.69,0.00016438,3]
[402360535,1768665041589,-466.05554011,0.00016438,3]
[402360537,1768665041599,-500.0,0.00016438,3]
[402360539,1768665041609,-500.0,0.00016438,3]
[402360541,1768665041619,-344.19716838,0.00016438,3]
[402360543,1768665041630,-500.0,0.00016438,3]
[402360545,1768665041640,-500.0,0.00016438,3]
[402360580,1768665041935,-1000.0,0.00016438,2]
[402360583,1768665041999,-500.0,0.00016438,3]
[402360585,1768665042018,-596.38925241,0.00016438,3]
[402360587,1768665042029,-500.0,0.00016438,3]
[402360589,1768665042040,-500.0,0.00016438,3]
[402360591,1768665042052,-500.0,0.00016438,3]
[402360593,1768665042063,-500.0,0.00016438,3]
[402360594,1768665042123,-500.0,0.00016438,3]
[402360596,1768665042133,-500.0,0.00016438,3]
[402360598,1768665042142,-1443.0,0.00016438,3]
[402360601,1768665042151,-1176.79,0.00016438,3]
[402360602,1768665042161,-612.26,0.00016438,3]
[402360605,1768665042171,-500.0,0.00016438,3]
[402360607,1768665042179,-500.0,0.00016438,3]
[402360609,1768665042189,-500.0,0.00016438,3]
[402360610,1768665042198,-500.0,0.00016438,3]
[402360613,1768665042207,-876.16,0.00016438,3]
[402360615,1768665042217,-754.06,0.00016438,3]
[402360617,1768665042227,-500.0,0.00016438,3]
[402360619,1768665042236,-500.0,0.00016438,3]
[402360621,1768665042247,-500.0,0.00016438,3]
[402360623,1768665042256,-1091.91,0.00016438,3]
[402360625,1768665042264,-500.0,0.00016438,3]
[402360627,1768665042274,-1585.84,0.00016438,3]
[402360629,1768665042282,-500.0,0.00016438,3]
[402360631,1768665042291,-931.21,0.00016438,3]
[402360633,1768665042300,-500.0,0.00016438,3]
[402360635,1768665042308,-2031.19,0.00016438,3]
[402360637,1768665042317,-500.0,0.00016438,3]
[402360639,1768665042327,-1635.0,0.00016438,3]
[402360641,1768665042337,-500.0,0.00016438,3]
[402360643,1768665042347,-1036.06,0.00016438,3]
[402360645,1768665042356,-500.0,0.00016438,3]
[402360647,1768665042365,-500.0,0.00016438,3]
[402360649,1768665042375,-500.0,0.00016438,3]
[402360651,1768665042384,-500.0,0.00016438,3]
[402360653,1768665042393,-500.0,0.00016438,3]
[402360655,1768665042402,-500.0,0.00016438,3]
[402360657,1768665042411,-500.0,0.00016438,3]
[402360658,1768665042420,-500.0,0.00016438,3]
[402360660,1768665042430,-500.0,0.00016438,3]
[402360662,1768665042440,-500.0,0.00016438,3]
[402360665,1768665042449,-698.53,0.00016438,3]
[402360666,1768665042459,-500.0,0.00016438,3]
[402360668,1768665042470,-500.0,0.00016438,3]
[402360670,1768665042480,-500.0,0.00016438,3]
[402360672,1768665042489,-500.0,0.00016438,3]
[402360675,1768665042499,-154.03719813,0.00016438,3]
[402360677,1768665042508,-500.0,0.00016438,3]
[402360679,1768665042518,-645.37,0.00016438,3]
[402360680,1768665042528,-500.0,0.00016438,3]
[402360683,1768665042538,-500.0,0.00016438,3]
[402360684,1768665042546,-500.0,0.00016438,3]
[402360686,1768665042554,-512.85,0.00016438,3]
[402360688,1768665042563,-500.0,0.00016438,3]
[402360690,1768665042572,-500.0,0.00016438,3]
[402360692,1768665042581,-500.0,0.00016438,3]
[402360694,1768665042590,-500.0,0.00016438,3]
[402360696,1768665042600,-500.0,0.00016438,3]
[402360698,1768665042609,-500.0,0.00016438,3]
[402360700,1768665042618,-1227.37,0.00016438,3]
[402360702,1768665042628,-500.0,0.00016438,3]
[402360704,1768665042638,-500.0,0.00016438,3]
[402360706,1768665042647,-500.0,0.00016438,3]
[402360708,1768665042657,-1020.11,0.00016438,3]
[402360710,1768665042667,-500.0,0.00016438,3]
[402360712,1768665042676,-500.0,0.00016438,3]
[402360714,1768665042686,-500.0,0.00016438,3]
[402360716,1768665042696,-500.0,0.00016438,3]
[402360718,1768665042706,-500.0,0.00016438,3]
[402360720,1768665042716,-495.89172188,0.00016438,3]
[402360726,1768665042744,-172.80827812,0.00016438,3]
[402360729,1768665042753,-557.47,0.00016438,3]
[402360733,1768665042763,-694.18,0.00016438,3]
[402360736,1768665042772,-559.20970516,0.00016438,3]
[402360739,1768665042786,-548.56829008,0.00016438,3]
[402360742,1768665042808,-98.00200476,0.00016438,3]
[402360744,1768665042818,-574.46,0.00016438,3]
[402360746,1768665042827,-980.16,0.00016438,3]
[402360748,1768665042837,-500.0,0.00016438,3]
[402360750,1768665042846,-500.0,0.00016438,3]
[402360752,1768665042855,-840.76799524,0.00016438,3]
[402360755,1768665042866,-176.22200476,0.00016438,3]
[402360757,1768665042875,-500.0,0.00016438,3]
[402360759,1768665042885,-1414.0,0.00016438,3]
[402360762,1768665042895,-500.0,0.00016438,3]
[402360765,1768665042904,-1232.41,0.00016438,3]
[402360768,1768665042913,-1680.3,0.00016438,3]
[402360770,1768665042923,-500.0,0.00016438,3]
[402360772,1768665042934,-500.0,0.00016438,3]
[402360774,1768665042944,-500.0,0.00016438,3]
[402360776,1768665042954,-970.01,0.00016438,3]
[402360778,1768665042965,-682.78,0.00016438,3]
[402360780,1768665042978,-991.54,0.00016438,3]
[402360782,1768665042987,-569.3,0.00016438,3]
[402360784,1768665042997,-500.0,0.00016438,3]
[402360786,1768665043018,-500.0,0.00016438,3]
[402360788,1768665043036,-500.0,0.00016438,3]
[402360790,1768665043048,-500.0,0.00016438,3]
[402360792,1768665043060,-600.01432001,0.00016438,3]
[402360795,1768665043071,-500.0,0.00016438,3]
[402360797,1768665043081,-500.0,0.00016438,3]
[402360798,1768665043093,-500.0,0.00016438,3]
[402360800,1768665043102,-500.0,0.00016438,3]
[402360802,1768665043111,-1204.34,0.00016438,3]
[402360804,1768665043120,-500.0,0.00016438,3]
[402360806,1768665043130,-500.0,0.00016438,3]
[402360808,1768665043139,-500.0,0.00016438,3]
[402360810,1768665043148,-500.0,0.00016438,3]
[402360812,1768665043158,-699.29,0.00016438,3]
[402360814,1768665043168,-500.0,0.00016438,3]
[402360815,1768665043177,-500.0,0.00016438,3]
[402360816,1768665043187,-500.0,0.00016438,3]
[402360817,1768665043196,-599.08,0.00016438,3]
[402360818,1768665043206,-844.47,0.00016438,3]
[402360819,1768665043215,-500.0,0.00016438,3]
[402360820,1768665043224,-500.0,0.00016438,3]
[402360821,1768665043234,-500.0,0.00016438,3]
[402360822,1768665043244,-1267.79,0.00016438,3]
[402360823,1768665043254,-500.0,0.00016438,3]
[402360824,1768665043263,-500.0,0.00016438,3]
[402360825,1768665043273,-779.7,0.00016438,3]
[402360826,1768665043282,-500.0,0.00016438,3]
[402360827,1768665043292,-500.0,0.00016438,3]
[402360828,1768665043302,-500.0,0.00016438,3]
[402360829,1768665043311,-500.0,0.00016438,3]
[402360830,1768665043320,-500.0,0.00016438,3]
[402360831,1768665043330,-822.6,0.00016438,3]
[402360833,1768665043339,-500.0,0.00016438,3]
[402360835,1768665043348,-184.2,0.00016438,2]
[402360837,1768665043358,-559.65,0.00016438,3]
[402360839,1768665043368,-548.36,0.00016438,3]
[402360841,1768665043377,-500.0,0.00016438,3]
[402360843,1768665043386,-652.4,0.00016438,3]
[402360845,1768665043395,-500.0,0.00016438,3]
[402360847,1768665043405,-500.0,0.00016438,3]
[402360849,1768665043415,-879.43,0.00016438,3]
[402360851,1768665043424,-973.42,0.00016438,3]
[402360853,1768665043433,-500.0,0.00016438,3]
[402360855,1768665043443,-500.0,0.00016438,3]
[402360857,1768665043452,-500.0,0.00016438,3]
[402360859,1768665043462,-500.0,0.00016438,3]
[402360861,1768665043471,-1145.62,0.00016438,3]
[402360863,1768665043480,-13061.87,0.00016438,3]
[402360865,1768665043490,-500.0,0.00016438,3]
[402360867,1768665043500,-284.76439161,0.00016438,3]
[402360869,1768665043510,-894.07,0.00016438,3]
[402360871,1768665043520,-500.0,0.00016438,3]
[402360873,1768665043529,-543.28,0.00016438,3]
[402360875,1768665043538,-500.0,0.00016438,3]
[402360877,1768665043547,-505.75,0.00016438,3]
[402360879,1768665043557,-500.0,0.00016438,3]
[402360881,1768665043567,-996.05,0.00016438,3]
[402360883,1768665043577,-694.52,0.00016438,3]
[402360885,1768665043586,-500.0,0.00016438,3]
[402360887,1768665043596,-551.39,0.00016438,3]
[402360889,1768665043605,-1711.21,0.00016438,3]
[402360891,1768665043616,-1198.36,0.00016438,3]
[402360893,1768665043625,-1233.7,0.00016438,3]
[402360895,1768665043635,-500.0,0.00016438,3]
[402360897,1768665043644,-500.0,0.00016438,3]
[402360899,1768665043653,-885.2,0.00016438,3]
[402360901,1768665043662,-500.0,0.00016438,3]
[402360903,1768665043671,-743.03,0.00016438,3]
[402360905,1768665043681,-500.0,0.00016438,3]
[402360906,1768665043690,-500.0,0.00016438,3]
[402360908,1768665043700,-738.87,0.00016438,3]
[402360910,1768665043709,-562.69925045,0.00016438,3]
[402360912,1768665043719,-500.0,0.00016438,3]
[402360914,1768665043728,-500.0,0.00016438,3]
[402360916,1768665043737,-1492.22,0.00016438,3]
[402360918,1768665043746,-1454.94,0.00016438,3]
[402360920,1768665043755,-1412.9,0.00016438,3]
[402360922,1768665043765,-1124.29,0.00016438,3]
[402360924,1768665043774,-547.32197869,0.00016438,3]
[402360926,1768665043784,-500.0,0.00016438,3]
[402360928,1768665043793,-500.0,0.00016438,3]
[402360930,1768665043803,-1122.01,0.00016438,3]
[402360932,1768665043812,-500.0,0.00016438,2]
[402360934,1768665043821,-500.0,0.00016438,3]
[402360936,1768665043831,-547.29,0.00016438,3]
[402360938,1768665043843,-500.0,0.00016438,3]
[402360940,1768665043853,-535.66,0.00016438,3]
[402360942,1768665043862,-649.14,0.00016438,3]
[402360944,1768665043871,-500.0,0.00016438,3]
[402360946,1768665043881,-500.0,0.00016438,3]
[402360948,1768665043890,-788.81,0.00016438,3]
[402360950,1768665043899,-812.87,0.00016438,3]
[402360952,1768665043909,-1457.05,0.00016438,3]
[402360954,1768665043918,-729.27,0.00016438,3]
[402360956,1768665043927,-514.24,0.00016438,3]
[402360958,1768665043937,-895.36,0.00016438,3]
[402360960,1768665043947,-500.0,0.00016438,3]
[402360962,1768665043956,-500.0,0.00016438,3]
[402360964,1768665043966,-500.0,0.00016438,3]
[402360966,1768665043979,-500.0,0.00016438,3]
[402360968,1768665043989,-500.0,0.00016438,3]
[402360970,1768665043998,-500.0,0.00016438,3]
[402360972,1768665044008,-500.0,0.00016438,3]
[402360974,1768665044018,-500.0,0.00016438,3]
[402360976,1768665044028,-500.0,0.00016438,3]
[402360978,1768665044038,-500.0,0.00016438,3]
[402360980,1768665044048,-500.0,0.00016438,3]
[402360982,1768665044058,-500.0,0.00016438,3]
[402360984,1768665044068,-500.0,0.00016438,3]
[402360986,1768665044077,-500.0,0.00016438,3]
[402360988,1768665044086,-500.0,0.00016438,3]
[402360990,1768665044095,-500.0,0.00016438,3]
[402360991,1768665044104,-500.0,0.00016438,3]
[402360993,1768665044114,-279.51222567,0.00016438,3]
[402360995,1768665044123,-500.0,0.00016438,3]
[402360998,1768665044134,-640.0,0.00016438,3]
[402360999,1768665044143,-500.0,0.00016438,3]
[402361001,1768665044152,-500.0,0.00016438,3]
[402361003,1768665044162,-500.0,0.00016438,3]
[402361005,1768665044172,-500.0,0.00016438,3]
[402361007,1768665044181,-865.89,0.00016438,3]
[402361009,1768665044190,-500.0,0.00016438,3]
[402361011,1768665044200,-886.71,0.00016438,3]
[402361013,1768665044209,-500.0,0.00016438,3]
[402361015,1768665044219,-848.65,0.00016438,3]
[402361017,1768665044228,-500.0,0.00016438,3]
[402361019,1768665044237,-596.56227807,0.00016438,3]
[402361021,1768665044247,-500.0,0.00016438,3]
[402361023,1768665044257,-793.54,0.00016438,3]
[402361025,1768665044267,-500.0,0.00016438,3]
[402361027,1768665044277,-500.0,0.00016438,3]
[402361029,1768665044286,-500.0,0.00016438,3]
[402361031,1768665044295,-832.98,0.00016438,3]
[402361033,1768665044304,-916.79,0.00016438,3]
[402361035,1768665044314,-500.0,0.00016438,3]
[402361037,1768665044323,-731.62,0.00016438,3]
[402361039,1768665044333,-616.05,0.00016438,3]
[402361041,1768665044341,-500.0,0.00016438,3]
[402361043,1768665044351,-500.0,0.00016438,3]
[402361045,1768665044360,-1053.26,0.00016438,3]
[402361047,1768665044370,-500.0,0.00016438,3]
[402361049,1768665044379,-500.0,0.00016438,3]
[402361051,1768665044388,-500.0,0.00016438,3]
[402361053,1768665044397,-608.22,0.00016438,3]
[402361055,1768665044406,-500.0,0.00016438,3]
[402361057,1768665044415,-753.14,0.00016438,3]
[402361059,1768665044425,-500.0,0.00016438,3]
[402361060,1768665044435,-500.0,0.00016438,3]
[402361062,1768665044444,-1307.23,0.00016438,3]
[402361065,1768665044454,-551.46,0.00016438,3]
[402361067,1768665044464,-500.0,0.00016438,3]
[402361069,1768665044474,-500.0,0.00016438,3]
[402361070,1768665044483,-500.0,0.00016438,3]
[402361073,1768665044492,-500.0,0.00016438,3]
[402361075,1768665044501,-1924.27,0.00016438,3]
[402361077,1768665044509,-773.54,0.00016438,3]
[402361079,1768665044519,-500.0,0.00016438,3]
[402361080,1768665044527,-500.0,0.00016438,3]
[402361082,1768665044536,-2184.7,0.00016438,3]
[402361084,1768665044546,-500.0,0.00016438,3]
[402361086,1768665044556,-500.0,0.00016438,3]
[402361088,1768665044566,-1163.31,0.00016438,3]
[402361091,1768665044576,-685.67,0.00016438,3]
[402361092,1768665044585,-500.0,0.00016438,3]
[402361095,1768665044595,-500.0,0.00016438,3]
[402361097,1768665044604,-587.43,0.00016438,3]
[402361099,1768665044614,-500.0,0.00016438,3]
[402361101,1768665044623,-500.0,0.00016438,3]
[402361102,1768665044632,-500.0,0.00016438,3]
[402361105,1768665044642,-500.0,0.00016438,3]
[402361107,1768665044651,-500.0,0.00016438,3]
[402361109,1768665044661,-1453.68,0.00016438,3]
[402361111,1768665044670,-500.0,0.00016438,3]
[402361113,1768665044680,-500.0,0.00016438,3]
[402361114,1768665044689,-500.0,0.00016438,3]
[402361116,1768665044699,-500.0,0.00016438,3]
[402361119,1768665044708,-500.0,0.00016438,3]
[402361120,1768665044717,-500.0,0.00016438,3]
[402361122,1768665044726,-500.0,0.00016438,3]
[402361124,1768665044735,-500.0,0.00016438,3]
[402361126,1768665044744,-500.0,0.00016438,3]
[402361128,1768665044754,-500.0,0.00016438,3]
[402361130,1768665044763,-500.0,0.00016438,3]
[402361132,1768665044773,-500.0,0.00016438,3]
[402361134,1768665044782,-500.0,0.00016438,3]
[402361136,1768665044792,-500.0,0.00016438,3]
[402361138,1768665044802,-500.0,0.00016438,3]
[402361140,1768665044812,-500.0,0.00016438,3]
[402361142,1768665044821,-1027.56,0.00016438,3]
[402361144,1768665044831,-500.0,0.00016438,3]
[402361146,1768665044840,-707.24,0.00016438,3]
[402361148,1768665044849,-500.0,0.00016438,3]
[402361150,1768665044859,-642.18,0.00016438,3]
[402361152,1768665044870,-500.0,0.00016438,3]
[402361155,1768665044880,-7228.13,0.00016438,3]
[402361156,1768665044889,-500.0,0.00016438,3]
[402361158,1768665044899,-1030.14,0.00016438,3]
[402361160,1768665044908,-1299.16,0.00016438,3]
[402361163,1768665044919,-500.0,0.00016438,3]
[402361165,1768665044928,-463.94480204,0.00016438,3]
[402361167,1768665044938,-617.37,0.00016438,3]
[402361169,1768665044948,-500.0,0.00016438,3]
[402361171,1768665044957,-500.0,0.00016438,3]
[402361172,1768665044968,-558.81,0.00016438,3]
[402361174,1768665044984,-853.76,0.00016438,3]
[402361176,1768665044993,-500.0,0.00016438,3]
[402361178,1768665045002,-500.0,0.00016438,3]
[402361180,1768665045012,-777.73,0.00016438,3]
[402361182,1768665045022,-759.01,0.00016438,3]
[402361184,1768665045032,-500.0,0.00016438,3]
[402361186,1768665045043,-500.0,0.00016438,3]
[402361188,1768665045056,-500.0,0.00016438,3]
[402361190,1768665045066,-500.0,0.00016438,3]
[402361192,1768665045076,-1176.98,0.00016438,3]
[402361194,1768665045085,-500.0,0.00016438,3]
[402361196,1768665045094,-500.0,0.00016438,3]
[402361198,1768665045104,-500.0,0.00016438,3]
[402361200,1768665045113,-2078.43,0.00016438,3]
[402361202,1768665045123,-524.81854803,0.00016438,3]
[402361204,1768665045133,-500.0,0.00016438,3]
[402361206,1768665045142,-500.0,0.00016438,3]
[402361208,1768665045152,-500.0,0.00016438,3]
[402361210,1768665045162,-500.0,0.00016438,3]
[402361212,1768665045171,-546.68,0.00016438,3]
[402361214,1768665045181,-500.0,0.00016438,3]
[402361216,1768665045190,-500.0,0.00016438,3]
[402361218,1768665045200,-1131.27,0.00016438,3]
[402361220,1768665045209,-1583.96,0.00016438,3]
[402361222,1768665045218,-500.0,0.00016438,3]
[402361224,1768665045228,-1158.71,0.00016438,3]
[402361226,1768665045237,-629.75777174,0.00016438,3]
[402361228,1768665045246,-2492.04,0.00016438,3]
[402361230,1768665045255,-556.93843661,0.00016438,3]
[402361232,1768665045264,-500.0,0.00016438,3]